[Event "Chinese Championship-B Women 2024"]
[Site "Liaocheng"]
[Date "2024.04.24"]
[Round "3.14"]
[White "He, Yixuan"]
[Black "Liu, Tian Yi"]
[Result "1/2-1/2"]
[WhiteElo "1812"]
[BlackElo "1636"]
[PlyCount "106"]
[EventDate "2024.04.24"]
[EventType "swiss"]
[EventCountry "CHN"]
[TimeControl "5400+30"]

1. e4 {[%emt 0:00:04]} c6 {[%emt 0:00:20]} 2. d4 {[%emt 0:00:03]} d5 {[%emt 0:00:06]} 3. exd5 {[%emt 0:00:04]} cxd5 {[%emt 0:00:05]} 4. Bd3 {[%emt 0:00:08]} Nc6 {[%emt 0:00:16]} 5. c3 {[%emt 0:00:22]} Nf6 {[%emt 0:00:25]} 6. h3 {[%emt 0:00:48]} e5 {[%emt 0:01:51]} 7. dxe5 {[%emt 0:01:23]} Nxe5 {[%emt 0:00:16]} 8. Be3 {[%emt 0:04:36]} Bd6 {[%emt 0:05:25]} 9. Nf3 {[%emt 0:01:40]} O-O {[%emt 0:02:16]} 10. Nxe5 {[%emt 0:04:43]} Bxe5 {[%emt 0:00:07]} 11. O-O {[%emt 0:01:09]} Bc7 {[%emt 0:08:34]} 12. Nd2 {[%emt 0:04:08]} Qd6 {[%emt 0:02:50]} 13. Nf3 {[%emt 0:00:58]} h6 {[%emt 0:09:04]} 14. Rc1 {[%emt 0:09:00]} Re8 {[%emt 0:02:46]} 15. Qc2 {[%emt 0:05:10]} Bd7 {[%emt 0:05:16]} 16. Bd4 {[%emt 0:07:08]} Ne4 {[%emt 0:08:58]} 17. Be3 {[%emt 0:06:37]} Qg6 {[%emt 0:14:08]} 18. Kh1 {[%emt 0:26:59]} Qh5 {[%emt 0:03:14]} 19. Ng1 {[%emt 0:00:42]} Ng3+ {[%emt 0:20:42]} 20. fxg3 {[%emt 0:00:07]} Rxe3 {[%emt 0:00:11]} 21. Bh7+ {[%emt 0:02:42]} Kh8 {[%emt 0:01:06]} 22. Bf5 {[%emt 0:00:13]} Bxf5 {[%emt 0:01:39]} 23. Qxf5 {[%emt 0:00:22]} Qxf5 {[%emt 0:00:13]} 24. Rxf5 {[%emt 0:00:03]} Re7 {[%emt 0:02:05]} 25. g4 {[%emt 0:02:08]} Rd8 {[%emt 0:01:41]} 26. Rd1 {[%emt 0:01:15]} Bb6 {[%emt 0:03:51]} 27. Rf3 {[%emt 0:03:40]} d4 {[%emt 0:02:18]} 28. Rfd3 {[%emt 0:01:17]} Re3 {[%emt 0:00:27]} 29. Rxe3 {[%emt 0:03:21]} dxe3 {[%emt 0:00:05]} 30. Rxd8+ {[%emt 0:00:04]} Bxd8 {[%emt 0:00:04]} 31. Ne2 {[%emt 0:00:03]} Kh7 {[%emt 0:01:00]} 32. g3 {[%emt 0:00:56]} Kg6 {[%emt 0:02:06]} 33. Kg2 {[%emt 0:00:04]} f5 {[%emt 0:01:06]} 34. gxf5+ {[%emt 0:00:13]} Kxf5 {[%emt 0:00:17]} 35. Kf3 {[%emt 0:00:04]} g5 {[%emt 0:01:49]} 36. g4+ {[%emt 0:01:22]} Ke5 {[%emt 0:00:28]} 37. Kxe3 {[%emt 0:00:06]} Bb6+ {[%emt 0:00:38]} 38. Kf3 {[%emt 0:01:00]} Kd5 {[%emt 0:00:58]} 39. Ng3 {[%emt 0:02:04]} Kc4 {[%emt 0:00:21]} 40. Ke2 {[%emt 0:05:17]} Bc5 {[%emt 0:00:39]} 41. Nf5 {[%emt 0:00:12]} Bf8 {[%emt 0:00:13]} 42. Ke3 {[%emt 0:01:09]} Kd5 {[%emt 0:00:53]} 43. Kf3 {[%emt 0:02:02]} Ke5 {[%emt 0:00:36]} 44. Nd4 {[%emt 0:00:32]} Bc5 {[%emt 0:00:28]} 45. Ne2 {[%emt 0:00:24]} Kd5 {[%emt 0:00:27]} 46. Ng3 {[%emt 0:00:07]} Ke5 {[%emt 0:00:37]} 47. Ne4 {[%emt 0:00:15]} Be7 {[%emt 0:00:19]} 48. Ke3 {[%emt 0:00:07]} a6 {[%emt 0:00:39]} 49. b3 {[%emt 0:00:38]} Bd8 {[%emt 0:00:34]} 50. Ng3 {[%emt 0:02:30]} Bb6+ {[%emt 0:00:20]} 51. Kf3 {[%emt 0:00:07]} Bc5 {[%emt 0:00:34]} 52. Ne2 {[%emt 0:01:24]} Bb6 {[%emt 0:00:19]} 53. Nc1 {[%emt 0:00:14]} Ba5 {[%emt 0:00:42]} 1/2-1/2

[Event "Chinese Championship-B Women 2024"]
[Site "Liaocheng"]
[Date "2024.04.24"]
[Round "3.15"]
[White "Yang, Shufan"]
[Black "Zhou, Shumeng"]
[Result "0-1"]
[WhiteElo "1627"]
[BlackElo "1800"]
[PlyCount "62"]
[EventDate "2024.04.24"]
[EventType "swiss"]
[EventCountry "CHN"]
[TimeControl "5400+30"]

1. Nf3 {[%emt 0:00:03]} Nf6 {[%emt 0:00:09]} 2. g3 {[%emt 0:00:03]} d5 {[%emt 0:00:23]} 3. d4 {[%emt 0:00:05]} g6 {[%emt 0:00:17]} 4. Bg2 {[%emt 0:00:04]} Bg7 {[%emt 0:00:05]} 5. O-O {[%emt 0:00:04]} O-O {[%emt 0:00:03]} 6. b3 {[%emt 0:00:05]} c5 {[%emt 0:00:26]} 7. Bb2 {[%emt 0:00:05]} cxd4 {[%emt 0:00:07]} 8. Nxd4 {[%emt 0:00:37]} Re8 {[%emt 0:00:33]} 9. e3 {[%emt 0:03:14]} e5 {[%emt 0:02:18]} 10. Ne2 {[%emt 0:01:15]} Nc6 {[%emt 0:01:11]} 11. Nd2 {[%emt 0:01:41]} Bf5 {[%emt 0:07:53]} 12. a3 {[%emt 0:09:28]} Qe7 {[%emt 0:04:29]} 13. Nf3 {[%emt 0:05:17]} Rad8 {[%emt 0:03:22]} 14. Nh4 {[%emt 0:11:24]} Bg4 {[%emt 0:02:11]} 15. h3 {[%emt 0:01:41]} Bc8 {[%emt 0:00:11]} 16. Nf3 {[%emt 0:01:54]} h5 {[%emt 0:03:08]} 17. Nc1 {[%emt 0:08:25]} e4 {[%emt 0:18:41]} 18. Nd4 {[%emt 0:00:26]} h4 {[%emt 0:00:30]} 19. Nce2 {[%emt 0:04:09]} Ne5 {[%emt 0:05:47]} 20. Kh2 {[%emt 0:02:41]} Nh5 {[%emt 0:05:46]} 21. Nf4 {[%emt 0:07:42]} Qg5 {[%emt 0:04:11]} 22. Nxh5 {[%emt 0:01:06]} gxh5 {[%emt 0:00:02]} 23. Qe2 {[%emt 0:02:10]} Rd6 {[%emt 0:05:52]} 24. Rad1 {[%emt 0:10:04]} Rg6 {[%emt 0:01:14]} 25. Qe1 {[%emt 0:00:29]} Nf3+ {[%emt 0:04:58]} 26. Bxf3 {[%emt 0:02:30]} exf3 {[%emt 0:00:01]} 27. Nxf3 {[%emt 0:05:53]} Qf5 {[%emt 0:00:08]} 28. Bxg7 {[%emt 0:00:08]} hxg3+ {[%emt 0:03:52]} 29. Kg1 {[%emt 0:02:55]} Qxf3 {[%emt 0:00:29]} 30. fxg3 {[%emt 0:01:14]} Rxg3+ {[%emt 0:00:09]} 31. Kh2 {[%emt 0:00:06]} Qg2# {[%emt 0:00:05]} 0-1

[Event "Chinese Championship-B Women 2024"]
[Site "Liaocheng"]
[Date "2024.04.24"]
[Round "4.1"]
[White "Wang, Chuqiao"]
[Black "Mu, Wangxueyao"]
[Result "1-0"]
[WhiteElo "2302"]
[BlackElo "1738"]
[PlyCount "109"]
[EventDate "2024.04.24"]
[EventType "swiss"]
[EventCountry "CHN"]
[TimeControl "5400+30"]

1. d4 {[%emt 0:00:30]} d5 {[%emt 0:02:22]} 2. c4 {[%emt 0:00:03]} e6 {[%emt 0:00:13]} 3. Nc3 {[%emt 0:00:07]} c5 {[%emt 0:00:40]} 4. cxd5 {[%emt 0:00:38]} exd5 {[%emt 0:00:02]} 5. Nf3 {[%emt 0:00:36]} Nc6 {[%emt 0:00:03]} 6. Bg5 {[%emt 0:05:01]} Be7 {[%emt 0:01:33]} 7. Bxe7 {[%emt 0:00:14]} Ngxe7 {[%emt 0:00:04]} 8. e3 {[%emt 0:00:05]} c4 {[%emt 0:01:11]} 9. e4 {[%emt 0:02:48]} dxe4 {[%emt 0:01:27]} 10. Nxe4 {[%emt 0:00:09]} Bg4 {[%emt 0:13:11]} 11. Bxc4 {[%emt 0:03:59]} O-O {[%emt 0:00:42]} 12. O-O {[%emt 0:08:10]} Bxf3 {[%emt 0:02:19]} 13. Qxf3 {[%emt 0:00:05]} Qxd4 {[%emt 0:00:29]} 14. Bb3 {[%emt 0:02:35]} Ne5 {[%emt 0:13:58]} 15. Qe2 {[%emt 0:02:01]} N7c6 {[%emt 0:02:28]} 16. Rad1 {[%emt 0:03:38]} Qb6 {[%emt 0:02:09]} 17. Nd6 {[%emt 0:03:24]} Rad8 {[%emt 0:07:14]} 18. Nf5 {[%emt 0:01:39]} g6 {[%emt 0:06:41]} 19. Ng3 {[%emt 0:04:05]} Kg7 {[%emt 0:04:02]} 20. h3 {[%emt 0:12:25]} Rfe8 {[%emt 0:02:49]} 21. Rxd8 {[%emt 0:00:10]} Rxd8 {[%emt 0:00:50]} 22. Kh2 {[%emt 0:01:10]} Qa6 {[%emt 0:04:31]} 23. Qxa6 {[%emt 0:04:08]} bxa6 {[%emt 0:00:36]} 24. f4 {[%emt 0:00:12]} Nd3 {[%emt 0:00:51]} 25. f5 {[%emt 0:00:10]} f6 {[%emt 0:00:47]} 26. Ne2 {[%emt 0:05:04]} gxf5 {[%emt 0:05:08]} 27. Rxf5 {[%emt 0:00:46]} Nce5 {[%emt 0:05:07]} 28. Nf4 {[%emt 0:02:01]} Rd6 {[%emt 0:11:06]} 29. Nxd3 {[%emt 0:01:51]} Nxd3 {[%emt 0:01:09]} 30. Bc2 {[%emt 0:03:46]} Nxb2 {[%emt 0:00:46]} 31. Rc5 {[%emt 0:00:32]} Rd7 {[%emt 0:02:07]} 32. Bf5 {[%emt 0:03:29]} Re7 {[%emt 0:02:55]} 33. Kg3 {[%emt 0:01:43]} Nd1 {[%emt 0:02:31]} 34. Kf4 {[%emt 0:01:17]} Ne3 {[%emt 0:01:31]} 35. Be4 {[%emt 0:01:18]} Nd1 {[%emt 0:02:58]} 36. Kf3 {[%emt 0:00:39]} Nb2 {[%emt 0:00:47]} 37. Bc2 {[%emt 0:00:28]} a5 {[%emt 0:00:49]} 38. Rh5 {[%emt 0:00:56]} Kh8 {[%emt 0:00:49]} 39. Rxa5 {[%emt 0:00:43]} Nc4 {[%emt 0:00:28]} 40. Rc5 {[%emt 0:01:18]} Ne5+ {[%emt 0:00:26]} 41. Kf4 {[%emt 0:01:19]} Kg7 {[%emt 0:00:38]} 42. g4 {[%emt 0:00:17]} Ng6+ {[%emt 0:00:19]} 43. Kf3 {[%emt 0:00:05]} Ne5+ {[%emt 0:00:30]} 44. Kg3 {[%emt 0:00:10]} Nd3 {[%emt 0:00:39]} 45. Rc3 {[%emt 0:06:57]} Nc1 {[%emt 0:00:13]} 46. Ra3 {[%emt 0:00:29]} Ne2+ {[%emt 0:00:16]} 47. Kf2 {[%emt 0:00:49]} Nf4 {[%emt 0:00:39]} 48. Bf5 {[%emt 0:00:35]} h5 {[%emt 0:00:45]} 49. Rf3 {[%emt 0:00:49]} Ne2 {[%emt 0:00:39]} 50. gxh5 {[%emt 0:07:34]} Nd4 {[%emt 0:00:27]} 51. Rg3+ {[%emt 0:00:03]} Kh6 {[%emt 0:00:05]} 52. Bd3 {[%emt 0:00:16]} Kxh5 {[%emt 0:00:36]} 53. Rg6 {[%emt 0:00:37]} Ne6 {[%emt 0:00:52]} 54. Rxf6 {[%emt 0:00:27]} Ng5 {[%emt 0:00:29]} 55. Be2+ {[%emt 0:00:09]} 1-0

[Event "Chinese Championship-B Women 2024"]
[Site "Liaocheng"]
[Date "2024.04.24"]
[Round "4.2"]
[White "Sun, Jihan"]
[Black "Xu, Mingwei"]
[Result "1-0"]
[WhiteElo "1781"]
[BlackElo "2037"]
[PlyCount "113"]
[EventDate "2024.04.24"]
[EventType "swiss"]
[EventCountry "CHN"]
[TimeControl "5400+30"]

1. e4 {[%emt 0:00:02]} e5 {[%emt 0:03:16]} 2. Nf3 {[%emt 0:00:14]} Nc6 {[%emt 0:00:17]} 3. Bc4 {[%emt 0:00:28]} Nf6 {[%emt 0:01:12]} 4. d3 {[%emt 0:00:14]} Be7 {[%emt 0:00:11]} 5. Nc3 {[%emt 0:02:54]} d6 {[%emt 0:00:44]} 6. a4 {[%emt 0:00:30]} Bg4 {[%emt 0:05:10]} 7. h3 {[%emt 0:07:47]} Bxf3 {[%emt 0:00:58]} 8. Qxf3 {[%emt 0:00:51]} Nd4 {[%emt 0:00:21]} 9. Qd1 {[%emt 0:00:12]} O-O {[%emt 0:00:20]} 10. O-O {[%emt 0:06:10]} Qd7 {[%emt 0:15:20]} 11. Be3 {[%emt 0:01:28]} c6 {[%emt 0:08:40]} 12. f4 {[%emt 0:05:41]} Rad8 {[%emt 0:04:07]} 13. Ba2 {[%emt 0:09:56]} b6 {[%emt 0:17:37]} 14. Qd2 {[%emt 1:01:03]} Kh8 {[%emt 0:15:25]} 15. Rae1 {[%emt 0:00:00]} Ne6 {[%emt 0:03:44]} 16. Ne2 {[%emt 0:00:00]} Nxf4 {[%emt 0:02:37]} 17. Nxf4 {[%emt 0:00:00]} exf4 {[%emt 0:01:03]} 18. Bxf4 {[%emt 0:00:00]} d5 {[%emt 0:00:39]} 19. exd5 {[%emt 0:00:00]} Nxd5 {[%emt 0:01:51]} 20. Bxd5 {[%emt 0:00:00]} cxd5 {[%emt 0:01:38]} 21. d4 {[%emt 0:00:00]} Bd6 {[%emt 0:00:40]} 22. Bxd6 {[%emt 0:00:00]} Qxd6 {[%emt 0:00:02]} 23. Re2 {[%emt 0:00:00]} h6 {[%emt 0:02:07]} 24. Rfe1 {[%emt 0:00:00]} Qd7 {[%emt 0:04:27]} 25. Qb4 {[%emt 0:00:00]} Kg8 {[%emt 0:05:04]} 26. Re7 {[%emt 0:00:00]} Qc6 {[%emt 0:00:03]} 27. c3 {[%emt 0:00:00]} Rde8 {[%emt 0:00:41]} 28. Qb5 {[%emt 0:00:00]} Rxe7 {[%emt 0:03:50]} 29. Rxe7 {[%emt 0:00:00]} Qg6 {[%emt 0:00:26]} 30. Rxa7 {[%emt 0:01:48]} Qb1+ {[%emt 0:00:14]} 31. Kh2 {[%emt 0:00:32]} Qc1 {[%emt 0:01:09]} 32. Qxd5 {[%emt 0:01:17]} Qf4+ {[%emt 0:01:09]} 33. g3 {[%emt 0:01:10]} Qc1 {[%emt 0:00:30]} 34. Qg2 {[%emt 0:00:30]} Re8 {[%emt 0:00:30]} 35. Ra8 {[%emt 0:00:49]} Rxa8 {[%emt 0:00:31]} 36. Qxa8+ {[%emt 0:00:02]} Kh7 {[%emt 0:01:57]} 37. Qe4+ {[%emt 0:00:37]} g6 {[%emt 0:00:00]} 38. Qe2 {[%emt 0:00:24]} Qa1 {[%emt 0:00:00]} 39. Qc2 {[%emt 0:00:02]} Qe1 {[%emt 0:00:00]} 40. d5 {[%emt 0:01:32]} Qe5 {[%emt 0:00:00]} 41. Qd2 {[%emt 0:01:32]} Qd6 {[%emt 0:01:06]} 42. c4 {[%emt 0:03:45]} h5 {[%emt 0:01:09]} 43. Kg2 {[%emt 0:00:30]} h4 {[%emt 0:00:14]} 44. Qf4 {[%emt 0:00:00]} Qb4 {[%emt 0:00:52]} 45. Qxf7+ {[%emt 0:00:00]} Kh6 {[%emt 0:00:01]} 46. Qf4+ {[%emt 0:00:00]} Kg7 {[%emt 0:00:07]} 47. Qd4+ {[%emt 0:00:00]} Kf7 {[%emt 0:01:21]} 48. d6 {[%emt 0:00:25]} Qxa4 {[%emt 0:00:02]} 49. d7 {[%emt 0:01:25]} Qc2+ {[%emt 0:00:45]} 50. Qf2+ {[%emt 0:00:12]} Qxf2+ {[%emt 0:00:04]} 51. Kxf2 {[%emt 0:00:03]} hxg3+ {[%emt 0:01:05]} 52. Kxg3 {[%emt 0:00:01]} Ke7 {[%emt 0:00:06]} 53. Kg4 {[%emt 0:00:09]} Kxd7 {[%emt 0:00:06]} 54. Kg5 {[%emt 0:00:14]} Kd6 {[%emt 0:00:29]} 55. Kxg6 {[%emt 0:00:09]} Kc5 {[%emt 0:00:01]} 56. h4 {[%emt 0:00:09]} Kxc4 {[%emt 0:00:13]} 57. h5 {[%emt 0:00:06]} 1-0

[Event "Chinese Championship-B Women 2024"]
[Site "Liaocheng"]
[Date "2024.04.24"]
[Round "4.3"]
[White "Zhou, Shumeng"]
[Black "Du, Yuxin"]
[Result "1-0"]
[WhiteElo "1800"]
[BlackElo "1960"]
[PlyCount "221"]
[EventDate "2024.04.24"]
[EventType "swiss"]
[EventCountry "CHN"]
[TimeControl "5400+30"]

1. e4 {[%emt 1:31:00]} c6 {[%emt 0:01:04]} 2. d4 {[%emt 0:00:00]} d5 {[%emt 0:00:05]} 3. e5 {[%emt 0:00:00]} Bf5 {[%emt 0:00:06]} 4. h4 {[%emt 0:00:00]} h5 {[%emt 0:00:07]} 5. Bd3 {[%emt 0:00:00]} Bxd3 {[%emt 0:00:17]} 6. Qxd3 {[%emt 0:00:00]} e6 {[%emt 0:00:08]} 7. Nf3 {[%emt 0:00:00]} Ne7 {[%emt 0:05:08]} 8. Bg5 {[%emt 0:00:00]} Qb6 {[%emt 0:01:09]} 9. Nbd2 {[%emt 0:00:00]} Nf5 {[%emt 0:03:23]} 10. O-O {[%emt 0:00:00]} Nd7 {[%emt 0:15:16]} 11. c4 {[%emt 0:00:00]} dxc4 {[%emt 0:06:57]} 12. Nxc4 {[%emt 0:00:00]} Qa6 {[%emt 0:02:46]} 13. Qc2 {[%emt 0:00:00]} Nb6 {[%emt 0:05:40]} 14. Ne3 {[%emt 0:00:00]} Ne7 {[%emt 0:08:56]} 15. Rfd1 {[%emt 0:00:00]} Ned5 {[%emt 0:06:46]} 16. a3 {[%emt 0:00:00]} Qb5 {[%emt 0:09:26]} 17. Nd2 {[%emt 0:00:00]} a5 {[%emt 0:04:20]} 18. Ne4 {[%emt 0:00:00]} a4 {[%emt 0:01:34]} 19. Rac1 {[%emt 0:00:00]} Qa5 {[%emt 0:15:58]} 20. Qe2 {[%emt 0:00:00]} Qa6 {[%emt 0:03:46]} 21. Qf3 {[%emt 0:00:00]} Qb5 {[%emt 0:00:55]} 22. Rd2 {[%emt 0:00:00]} Qb3 {[%emt 0:01:59]} 23. Ng3 {[%emt 0:00:00]} g6 {[%emt 0:04:31]} 24. Ne4 {[%emt 0:00:00]} Qb5 {[%emt 0:01:08]} 25. Re2 {[%emt 0:00:00]} Qa6 {[%emt 0:00:38]} 26. Rce1 {[%emt 0:00:00]} Be7 {[%emt 0:00:40]} 27. Nd6+ {[%emt 0:00:00]} Bxd6 {[%emt 0:00:22]} 28. exd6 {[%emt 0:00:00]} O-O {[%emt 0:00:40]} 29. Nxd5 {[%emt 0:00:00]} Nxd5 {[%emt 0:00:30]} 30. d7 {[%emt 0:00:00]} Qb6 {[%emt 0:00:19]} 31. Qd3 {[%emt 0:00:00]} Kh7 {[%emt 0:00:44]} 32. d8=Q {[%emt 0:00:00]} Raxd8 {[%emt 0:00:06]} 33. Bxd8 {[%emt 0:00:00]} Qxd8 {[%emt 0:00:25]} 34. g3 {[%emt 0:00:00]} Ne7 {[%emt 0:01:06]} 35. Qc4 {[%emt 0:00:00]} Qa5 {[%emt 0:00:28]} 36. Re5 {[%emt 0:00:00]} Nd5 {[%emt 0:00:14]} 37. Qc2 {[%emt 0:00:00]} Kg7 {[%emt 0:00:26]} 38. R1e2 {[%emt 0:00:00]} Re8 {[%emt 0:00:36]} 39. Kg2 {[%emt 0:00:00]} Qa7 {[%emt 0:00:22]} 40. Qc5 {[%emt 0:00:00]} Qxc5 {[%emt 0:00:18]} 41. dxc5 {[%emt 0:00:00]} Ra8 {[%emt 0:00:20]} 42. R5e4 {[%emt 0:00:00]} Ra5 {[%emt 0:00:56]} 43. Rc4 {[%emt 0:00:00]} Kf6 {[%emt 0:00:42]} 44. Kf3 {[%emt 0:00:20]} Nc7 {[%emt 0:00:37]} 45. g4 {[%emt 0:02:03]} hxg4+ {[%emt 0:00:16]} 46. Kxg4 {[%emt 0:00:02]} Nd5 {[%emt 0:00:31]} 47. Rd2 {[%emt 0:01:05]} Ke7 {[%emt 0:00:36]} 48. Rd3 {[%emt 0:01:34]} Nf6+ {[%emt 0:00:25]} 49. Kg3 {[%emt 0:01:07]} Nd7 {[%emt 0:00:40]} 50. Rdc3 {[%emt 0:00:37]} e5 {[%emt 0:00:33]} 51. Rc2 {[%emt 0:00:51]} Ke6 {[%emt 0:00:14]} 52. R4c3 {[%emt 0:01:01]} Nf6 {[%emt 0:00:23]} 53. Re2 {[%emt 0:01:29]} Nd7 {[%emt 0:00:48]} 54. f4 {[%emt 0:00:33]} f6 {[%emt 0:00:05]} 55. fxe5 {[%emt 0:00:25]} fxe5 {[%emt 0:00:09]} 56. Rec2 {[%emt 0:02:11]} Nf6 {[%emt 0:00:06]} 57. Rc4 {[%emt 0:01:04]} Kd5 {[%emt 0:00:30]} 58. Kf3 {[%emt 0:00:58]} Ke6 {[%emt 0:00:38]} 59. Rb4 {[%emt 0:00:31]} e4+ {[%emt 0:01:34]} 60. Ke2 {[%emt 0:00:22]} Ra7 {[%emt 0:00:19]} 61. Rcc4 {[%emt 0:00:36]} Kd5 {[%emt 0:00:34]} 62. Rxa4 {[%emt 0:00:26]} Rxa4 {[%emt 0:00:19]} 63. Rxa4 {[%emt 0:00:01]} Kxc5 {[%emt 0:00:09]} 64. Ra7 {[%emt 0:00:35]} b5 {[%emt 0:00:25]} 65. Rg7 {[%emt 0:00:16]} Nd5 {[%emt 0:00:17]} 66. Kd1 {[%emt 0:01:12]} Ne3+ {[%emt 0:00:35]} 67. Kd2 {[%emt 0:00:24]} Nf5 {[%emt 0:00:50]} 68. Rxg6 {[%emt 0:00:03]} Nxh4 {[%emt 0:00:08]} 69. Rg4 {[%emt 0:00:46]} Nf3+ {[%emt 0:00:09]} 70. Ke3 {[%emt 0:01:07]} Ne5 {[%emt 0:00:32]} 71. Rg5 {[%emt 0:01:41]} Kd6 {[%emt 0:00:10]} 72. Kxe4 {[%emt 0:00:35]} Nc4 {[%emt 0:00:08]} 73. Rg2 {[%emt 0:00:10]} Kc5 {[%emt 0:00:56]} 74. Kd3 {[%emt 0:01:20]} Kb6 {[%emt 0:00:22]} 75. Kc3 {[%emt 0:00:18]} Ne3 {[%emt 0:00:39]} 76. Rg6 {[%emt 0:00:07]} Kc5 {[%emt 0:00:19]} 77. Rg5+ {[%emt 0:01:02]} Kb6 {[%emt 0:00:17]} 78. b3 {[%emt 0:00:36]} Nd5+ {[%emt 0:01:26]} 79. Kd4 {[%emt 0:00:11]} Nc7 {[%emt 0:00:28]} 80. Rg6 {[%emt 0:00:28]} Nd5 {[%emt 0:00:59]} 81. b4 {[%emt 0:01:34]} Nf4 {[%emt 0:00:54]} 82. Rh6 {[%emt 0:00:29]} Nd5 {[%emt 0:00:29]} 83. Ke5 {[%emt 0:00:44]} Ne3 {[%emt 0:00:15]} 84. Rh3 {[%emt 0:00:14]} Nc4+ {[%emt 0:00:17]} 85. Kd4 {[%emt 0:00:05]} Nd6 {[%emt 0:00:45]} 86. Rc3 {[%emt 0:00:12]} Nb7 {[%emt 0:00:22]} 87. Rc1 {[%emt 0:00:43]} Nd6 {[%emt 0:00:15]} 88. Rc5 {[%emt 0:01:13]} Nb7 {[%emt 0:00:12]} 89. Rc3 {[%emt 0:00:31]} Nd6 {[%emt 0:00:06]} 90. Ke5 {[%emt 0:01:02]} Nc4+ {[%emt 0:00:42]} 91. Ke6 {[%emt 0:00:26]} c5 {[%emt 0:00:51]} 92. Kd5 {[%emt 0:00:29]} cxb4 {[%emt 0:00:11]} 93. axb4 {[%emt 0:00:03]} Nb2 {[%emt 0:00:21]} 94. Rb3 {[%emt 0:00:29]} Na4 {[%emt 0:00:22]} 95. Rh3 {[%emt 0:00:19]} Kc7 {[%emt 0:00:19]} 96. Rh7+ {[%emt 0:00:30]} Kb6 {[%emt 0:00:37]} 97. Kd6 {[%emt 0:01:59]} Nb2 {[%emt 0:00:32]} 98. Kd7 {[%emt 0:00:29]} Nd3 {[%emt 0:00:39]} 99. Rh6+ {[%emt 0:00:26]} Kb7 {[%emt 0:00:12]} 100. Rh4 {[%emt 0:00:28]} Kb6 {[%emt 0:00:23]} 101. Rd4 {[%emt 0:00:10]} Nb2 {[%emt 0:00:49]} 102. Kc8 {[%emt 0:00:30]} Nc4 {[%emt 0:01:21]} 103. Kb8 {[%emt 0:01:13]} Kc6 {[%emt 0:00:20]} 104. Ka7 {[%emt 0:00:25]} Na3 {[%emt 0:00:41]} 105. Ka6 {[%emt 0:00:20]} Nc2 {[%emt 0:00:18]} 106. Rh4 {[%emt 0:00:07]} Na3 {[%emt 0:00:17]} 107. Rh6+ {[%emt 0:00:11]} Kd5 {[%emt 0:00:20]} 108. Rh3 {[%emt 0:00:08]} Nc2 {[%emt 0:01:03]} 109. Kxb5 {[%emt 0:00:06]} Nd4+ {[%emt 0:00:21]} 110. Ka6 {[%emt 0:00:31]} Ne6 {[%emt 0:01:09]} 111. Rc3 {[%emt 0:00:16]} 1-0

[Event "Chinese Championship-B Women 2024"]
[Site "Liaocheng"]
[Date "2024.04.24"]
[Round "4.4"]
[White "Guo, Weibao"]
[Black "Shao, Qiyu"]
[Result "1/2-1/2"]
[WhiteElo "1954"]
[BlackElo "1764"]
[PlyCount "144"]
[EventDate "2024.04.24"]
[EventType "swiss"]
[EventCountry "CHN"]
[TimeControl "5400+30"]

1. d4 {[%emt 0:00:02]} Nf6 {[%emt 0:02:35]} 2. c4 {[%emt 0:00:18]} e6 {[%emt 0:00:23]} 3. Nf3 {[%emt 0:00:29]} b6 {[%emt 0:00:05]} 4. g3 {[%emt 0:00:46]} Ba6 {[%emt 0:00:07]} 5. b3 {[%emt 0:00:03]} Bb4+ {[%emt 0:00:18]} 6. Bd2 {[%emt 0:00:39]} Be7 {[%emt 0:00:03]} 7. Bg2 {[%emt 0:00:05]} Bb7 {[%emt 0:01:39]} 8. O-O {[%emt 0:00:55]} O-O {[%emt 0:01:13]} 9. Nc3 {[%emt 0:04:55]} d5 {[%emt 0:00:07]} 10. Ne5 {[%emt 0:05:23]} Nbd7 {[%emt 0:09:05]} 11. Nxd7 {[%emt 0:05:18]} Qxd7 {[%emt 0:00:10]} 12. Qc2 {[%emt 0:00:53]} c5 {[%emt 0:05:16]} 13. dxc5 {[%emt 0:07:43]} Bxc5 {[%emt 0:02:59]} 14. cxd5 {[%emt 0:05:16]} Nxd5 {[%emt 0:07:28]} 15. Nxd5 {[%emt 0:02:35]} Bxd5 {[%emt 0:00:09]} 16. e4 {[%emt 0:03:30]} Bb7 {[%emt 0:01:06]} 17. Bc3 {[%emt 0:00:43]} Bd4 {[%emt 0:05:12]} 18. Bxd4 {[%emt 0:04:56]} Qxd4 {[%emt 0:00:15]} 19. Rad1 {[%emt 0:00:52]} Qb4 {[%emt 0:01:27]} 20. Rd7 {[%emt 0:02:22]} Rfc8 {[%emt 0:07:19]} 21. Qb2 {[%emt 0:04:10]} Bc6 {[%emt 0:05:18]} 22. Rd4 {[%emt 0:02:55]} Qe7 {[%emt 0:01:27]} 23. Rfd1 {[%emt 0:00:47]} h6 {[%emt 0:01:27]} 24. h4 {[%emt 0:01:47]} Rd8 {[%emt 0:05:55]} 25. Qc3 {[%emt 0:05:36]} Rxd4 {[%emt 0:02:19]} 26. Rxd4 {[%emt 0:00:39]} Bb7 {[%emt 0:02:35]} 27. Qd2 {[%emt 0:00:42]} Bc6 {[%emt 0:03:03]} 28. Qc3 {[%emt 0:08:24]} Bb7 {[%emt 0:00:08]} 29. Qd3 {[%emt 0:00:43]} Bc6 {[%emt 0:00:05]} 30. Rd6 {[%emt 0:01:53]} Rc8 {[%emt 0:15:09]} 31. Qd2 {[%emt 0:05:19]} Bd5 {[%emt 0:09:07]} 32. e5 {[%emt 0:07:09]} Rd8 {[%emt 0:00:44]} 33. Rxd8+ {[%emt 0:06:37]} Qxd8 {[%emt 0:00:02]} 34. Bxd5 {[%emt 0:01:07]} exd5 {[%emt 0:07:36]} 35. Qd4 {[%emt 0:02:11]} Qd7 {[%emt 0:00:19]} 36. Kg2 {[%emt 0:01:28]} Qc6 {[%emt 0:00:28]} 37. Kf3 {[%emt 0:01:31]} Kf8 {[%emt 0:00:30]} 38. Ke3 {[%emt 0:02:08]} Ke7 {[%emt 0:01:02]} 39. Kd3 {[%emt 0:01:08]} Qg6+ {[%emt 0:02:03]} 40. Ke3 {[%emt 0:01:17]} Qc6 {[%emt 0:01:07]} 41. Kd3 {[%emt 0:00:55]} g6 {[%emt 0:01:34]} 42. Qf4 {[%emt 0:01:53]} Qb5+ {[%emt 0:01:45]} 43. Kc3 {[%emt 0:00:47]} Qc6+ {[%emt 0:00:39]} 44. Kd3 {[%emt 0:00:40]} Qb5+ {[%emt 0:00:33]} 45. Kc3 {[%emt 0:00:36]} Qc5+ {[%emt 0:00:16]} 46. Kd3 {[%emt 0:00:47]} Ke8 {[%emt 0:00:21]} 47. Qf6 {[%emt 0:02:10]} d4 {[%emt 0:00:39]} 48. Qd6 {[%emt 0:00:41]} Qc3+ {[%emt 0:00:29]} 49. Ke4 {[%emt 0:00:09]} Qc2+ {[%emt 0:00:13]} 50. Kxd4 {[%emt 0:00:35]} Qxf2+ {[%emt 0:00:04]} 51. Kc4 {[%emt 0:00:28]} Qe2+ {[%emt 0:00:56]} 52. Kd5 {[%emt 0:00:58]} Qf3+ {[%emt 0:00:54]} 53. Kc4 {[%emt 0:00:10]} Qb7 {[%emt 0:00:32]} 54. Kd4 {[%emt 0:00:23]} Qc8 {[%emt 0:00:24]} 55. Kd5 {[%emt 0:00:42]} Qb7+ {[%emt 0:00:41]} 56. Kd4 {[%emt 0:00:07]} Qc8 {[%emt 0:00:37]} 57. Kd5 {[%emt 0:00:36]} Qd7 {[%emt 0:00:30]} 58. b4 {[%emt 0:00:30]} Qb5+ {[%emt 0:00:29]} 59. Kd4 {[%emt 0:00:10]} Qd7 {[%emt 0:00:31]} 60. Kd5 {[%emt 0:00:53]} Qb5+ {[%emt 0:00:09]} 61. Kd4 {[%emt 0:00:01]} Qd7 {[%emt 0:00:53]} 62. Qxd7+ {[%emt 0:00:58]} Kxd7 {[%emt 0:00:02]} 63. Kd5 {[%emt 0:00:10]} g5 {[%emt 0:00:55]} 64. hxg5 {[%emt 0:00:13]} hxg5 {[%emt 0:00:01]} 65. b5 {[%emt 0:00:23]} g4 {[%emt 0:00:43]} 66. Ke4 {[%emt 0:01:31]} Ke6 {[%emt 0:00:02]} 67. Kd4 {[%emt 0:00:24]} Ke7 {[%emt 0:00:36]} 68. Kd5 {[%emt 0:00:08]} Kd7 {[%emt 0:00:08]} 69. Kd4 {[%emt 0:00:34]} Ke7 {[%emt 0:00:07]} 70. Kd5 {[%emt 0:00:16]} Kd7 {[%emt 0:00:02]} 71. Kd4 {[%emt 0:00:45]} Ke7 {[%emt 0:00:03]} 72. Kd5 {[%emt 0:00:35]} Kd7 {[%emt 0:00:02]} 1/2-1/2